fUSD/lending_fUSD_20250110
["ID","MTS","AMOUNT","RATE_DAILY","PERIOD"]
[348455522,1736535041113,-500.0,0.00010522,2]
[348455524,1736535041123,-551.69,0.00010522,2]
[348455526,1736535041134,-655.04,0.00010523,2]
[348455528,1736535041143,-1717.99,0.00010523,2]
[348455530,1736535041152,-771.37,0.00010523,2]
[348455532,1736535041161,-500.0,0.00010523,2]
[348455534,1736535041171,-702.24,0.00010523,2]
[348455536,1736535041180,-669.76,0.00010523,2]
[348455538,1736535041190,-999.71,0.00010523,2]
[348455539,1736535041199,-754.21,0.00010523,2]
[348455541,1736535041209,-1948.07,0.00010523,2]
[348455543,1736535041218,-205.88189651,0.00010535,2]
[348455545,1736535041227,-500.0,0.00010544,2]
[348455547,1736535041237,-500.0,0.00010544,2]
[348455549,1736535041247,-500.0,0.00010545,2]
[348455551,1736535041257,-589.55,0.00010545,2]
[348455553,1736535041266,-500.0,0.00010545,2]
[348455555,1736535041275,-793.79,0.00010545,2]
[348455557,1736535041285,-507.7414816,0.00010545,2]
[348455559,1736535041294,-546.37,0.00010545,2]
[348455561,1736535041304,-500.0,0.00010545,2]
[348455563,1736535041313,-2002.94,0.00010545,2]
[348455565,1736535041322,-630.94,0.00010545,2]
[348455567,1736535041331,-500.0,0.00010545,2]
[348455569,1736535041341,-1113.76,0.00010545,2]
[348455571,1736535041351,-2877.49,0.00010545,2]
[348455573,1736535041360,-500.0,0.00010545,2]
[348455575,1736535041369,-500.0,0.00010545,2]
[348455577,1736535041379,-576.49,0.00010545,2]
[348455579,1736535041388,-851.28,0.00010545,2]
[348455581,1736535041397,-941.11,0.00010545,2]
[348455583,1736535041406,-500.0,0.00010545,2]
[348455585,1736535041415,-500.0,0.00010545,2]
[348455587,1736535041424,-1730.53,0.00010545,2]
[348455589,1736535041434,-500.0,0.00010545,2]
[348455591,1736535041443,-500.0,0.00010545,2]
[348455593,1736535041452,-500.0,0.00010545,2]
[348455594,1736535041461,-507.75,0.00010545,2]
[348455596,1736535041470,-1062.01,0.00010545,2]
[348455598,1736535041479,-1447.38,0.00010545,2]
[348455600,1736535041488,-500.0,0.00010545,2]
[348455602,1736535041498,-738.02,0.00010545,2]
[348455604,1736535041507,-500.0,0.00010545,2]
[348455606,1736535041515,-507.06,0.00010545,2]
[348455608,1736535041524,-917.46,0.00010545,2]
[348455610,1736535041533,-1492.46,0.00010545,2]
[348455612,1736535041542,-500.0,0.00010545,2]
[348455614,1736535041551,-500.0,0.00010545,2]
[348455616,1736535041560,-824.11,0.00010545,2]
[348455618,1736535041570,-500.0,0.00010545,2]
[348455620,1736535041579,-500.0,0.00010546,2]
[348455622,1736535041588,-500.0,0.00010546,2]
[348455624,1736535041598,-500.0,0.00010546,2]
[348455626,1736535041607,-500.0,0.00010546,2]
[348455628,1736535041617,-500.0,0.00010546,2]
[348455630,1736535041626,-500.0,0.00010546,2]
[348455632,1736535041638,-500.0,0.00010546,2]
[348455634,1736535041647,-500.0,0.00010546,2]
[348455636,1736535041657,-500.0,0.00010546,2]
[348455638,1736535041666,-500.0,0.00010546,2]
[348455639,1736535041674,-500.0,0.00010546,2]
[348455641,1736535041684,-500.0,0.00010546,2]
[348455643,1736535041693,-500.0,0.00010546,2]
[348455645,1736535041702,-500.0,0.00010546,2]
[348455647,1736535041712,-500.0,0.00010546,2]
[348455649,1736535041721,-500.0,0.00010546,2]
[348455651,1736535041731,-500.0,0.00010546,2]
[348455653,1736535041740,-500.0,0.00010546,2]
[348455655,1736535041749,-500.0,0.00010546,2]
[348455657,1736535041758,-500.0,0.00010546,2]
[348455659,1736535041767,-500.0,0.00010546,2]
[348455661,1736535041777,-733.66,0.00010546,2]
[348455663,1736535041786,-500.0,0.00010546,2]
[348455665,1736535041796,-500.0,0.00010546,2]
[348455667,1736535041806,-500.0,0.00010546,2]
[348455669,1736535041815,-500.0,0.00010546,2]
[348455671,1736535041824,-1054.44,0.00010546,2]
[348455673,1736535041834,-410.52231902,0.00010546,2]
[348455674,1736535041843,-500.0,0.00010546,2]
[348455676,1736535041853,-665.87,0.00010546,2]
[348455678,1736535041864,-500.0,0.00010546,2]
[348455680,1736535041874,-500.0,0.00010546,2]
[348455682,1736535041887,-500.0,0.00010546,2]
[348455684,1736535041896,-437.572086,0.00010546,2]
[348455686,1736535041905,-500.0,0.00010546,2]
[348455688,1736535041915,-500.0,0.00010546,2]
[348455690,1736535041924,-500.0,0.00010546,2]
[348455692,1736535041933,-500.0,0.00010546,2]
[348455694,1736535041942,-500.0,0.00010546,2]
[348455696,1736535041952,-500.0,0.00010546,2]
[348455698,1736535041961,-562.327819,0.00010546,2]
[348455700,1736535041972,-500.0,0.00010546,2]
[348455702,1736535041981,-500.0,0.00010546,2]
[348455704,1736535041990,-1286.15,0.00010546,2]
[348455705,1736535041999,-500.0,0.00010546,2]
[348455707,1736535042008,-500.0,0.00010546,2]
[348455709,1736535042017,-500.0,0.00010546,2]
[348455710,1736535042031,-500.0,0.00010546,2]
[348455711,1736535042042,-500.0,0.00010546,2]
[348455712,1736535042052,-500.0,0.00010546,2]
[348455713,1736535042062,-500.0,0.00010546,2]
[348455714,1736535042072,-211.96198568,0.00010546,2]
[348455715,1736535042082,-543.66565275,0.00010546,2]
[348455716,1736535042091,-500.0,0.00010546,2]
[348455717,1736535042101,-500.0,0.00010546,2]
[348455718,1736535042111,-500.0,0.00010546,2]
[348455719,1736535042120,-500.0,0.00010546,2]
[348455720,1736535042132,-981.75,0.00010546,2]
[348455721,1736535042141,-1419.09,0.00010546,2]
[348455722,1736535042151,-500.0,0.00010546,2]
[348455723,1736535042160,-500.0,0.00010546,2]
[348455724,1736535042169,-500.0,0.00010546,2]
[348455725,1736535042179,-370.00206852,0.00010546,2]
[348455726,1736535042188,-1630.18,0.00010546,2]
[348455727,1736535042197,-500.0,0.00010546,2]
[348455728,1736535042207,-416.62598549,0.00010546,2]
[348455729,1736535042216,-500.0,0.00010546,2]
[348455730,1736535042226,-500.0,0.00010546,2]
[348455731,1736535042235,-500.0,0.00010546,2]
[348455732,1736535042244,-500.0,0.00010546,2]
[348455733,1736535042254,-1601.41,0.00010546,2]
[348455734,1736535042263,-588.34,0.00010546,2]
[348455735,1736535042272,-500.0,0.00010546,2]
[348455736,1736535042282,-500.0,0.00010546,2]
[348455737,1736535042292,-475.54514682,0.00010546,2]
[348455738,1736535042302,-500.0,0.00010546,2]
[348455739,1736535042311,-500.0,0.00010546,2]
[348455740,1736535042320,-500.0,0.00010546,2]
[348455741,1736535042330,-500.0,0.00010546,2]
[348455742,1736535042341,-500.0,0.00010546,2]
[348455743,1736535042350,-500.0,0.00010546,2]
[348455744,1736535042359,-500.0,0.00010546,2]
[348455745,1736535042369,-500.0,0.00010546,2]
[348455746,1736535042379,-500.0,0.00010546,2]
[348455747,1736535042390,-500.0,0.00010546,2]
[348455748,1736535042400,-178.95789889,0.00010609,2]
[348455749,1736535042409,-500.0,0.00010645,2]
[348455750,1736535042419,-500.0,0.00010645,2]
[348455751,1736535042430,-617.65,0.00010645,2]
[348455752,1736535042439,-865.29,0.00010645,2]
[348455753,1736535042450,-645.15,0.00010645,2]
[348455755,1736535042460,-1080.59,0.00010646,2]
[348455757,1736535042469,-861.95,0.00010646,2]
[348455759,1736535042479,-625.77,0.00010646,2]
[348455760,1736535042489,-500.0,0.00010646,2]
[348455761,1736535042498,-989.85,0.00010646,2]
[348455762,1736535042508,-635.83,0.00010646,2]
[348455763,1736535042518,-500.0,0.00010646,2]
[348455764,1736535042527,-500.0,0.00010648,2]
[348455765,1736535042538,-500.0,0.00010648,2]
[348455766,1736535042547,-500.0,0.00010648,2]
[348455767,1736535042563,-500.0,0.00010648,2]
[348455768,1736535042572,-747.32,0.00010648,2]
[348455769,1736535042582,-1723.13,0.00010648,2]
[348455770,1736535042592,-500.0,0.00010648,2]
[348455771,1736535042601,-500.0,0.00010648,2]
[348455772,1736535042611,-961.88,0.00010648,2]
[348455773,1736535042622,-500.0,0.00010648,2]
[348455774,1736535042631,-663.16,0.00010648,2]
[348455775,1736535042641,-500.0,0.00010648,2]
[348455776,1736535042651,-695.05,0.00010648,2]
[348455777,1736535042662,-500.0,0.00010648,2]
[348455778,1736535042673,-1000.0,0.00010648,2]
[348455779,1736535042682,-566.48,0.00010648,2]
[348455780,1736535042694,-374.31,0.00010648,2]
[348455781,1736535042704,-1357.05,0.00010648,2]
[348455782,1736535042714,-205.88189651,0.00010674,2]
[348455783,1736535042724,-178.95789889,0.00010731,2]
[348455784,1736535042735,-500.0,0.00010795,2]
[348455785,1736535042745,-500.0,0.00010795,2]
[348455786,1736535042755,-500.0,0.00010795,2]
[348455787,1736535042765,-1876.44,0.00010795,2]
[348455788,1736535042775,-500.0,0.00010796,2]
[348455789,1736535042785,-500.0,0.00010796,2]
[348455790,1736535042795,-500.0,0.00010796,2]
[348455795,1736535043034,-500.0,0.00010796,2]
[348455796,1736535043045,-500.0,0.00010796,2]
[348455797,1736535043055,-500.0,0.00010796,2]
[348455799,1736535043065,-145.73181238,0.00010796,2]
[348455800,1736535043123,-354.26818762,0.00010796,2]
[348455801,1736535043134,-500.0,0.00010796,2]
[348455803,1736535043144,-145.82181238,0.00010796,2]
[348455805,1736535043156,-354.17818762,0.00010796,2]
[348455806,1736535043166,-260.56581212,0.00010796,2]
[348455807,1736535043187,-18.72570553,0.00010796,2]
[348455808,1736535043196,-455.55092128,0.00010796,2]
[348455809,1736535043208,-44.44907872,0.00010796,2]
[348455810,1736535043218,-500.0,0.00010796,2]
[348455811,1736535043228,-500.0,0.00010796,2]
[348455812,1736535043238,-500.0,0.00010796,2]
[348455813,1736535043248,-500.0,0.00010796,2]
[348455814,1736535043258,-593.55422421,0.00010796,2]
[348455815,1736535043268,-500.0,0.00010796,2]
[348455816,1736535043279,-500.0,0.00010796,2]
[348455817,1736535043289,-500.0,0.00010796,2]
[348455818,1736535043299,-242.46393669,0.00010796,2]
[348455819,1736535043311,-257.53606331,0.00010796,2]
[348455820,1736535043321,-655.04,0.00010797,2]
[348455821,1736535043331,-713.06393669,0.00010797,2]
[348455822,1736535043343,-1004.92606331,0.00010797,2]
[348455823,1736535043354,-771.37,0.00010797,2]
[348455824,1736535043365,-500.0,0.00010797,2]
[348455825,1736535043376,-702.24,0.00010797,2]
[348455826,1736535043388,-669.76,0.00010797,2]
[348455827,1736535043398,-999.71,0.00010797,2]
[348455828,1736535043409,-651.99393669,0.00010797,2]
[348455829,1736535043423,-102.21606331,0.00010797,2]
[348455830,1736535043432,-1948.07,0.00010797,2]
[348455831,1736535043443,-205.88189651,0.00010813,2]
[348455832,1736535043454,-500.0,0.00010818,2]
[348455833,1736535043464,-500.0,0.00010819,2]
[348455834,1736535043474,-589.55,0.00010819,2]
[348455835,1736535043483,-658.29798218,0.00010819,2]
[348455838,1736535044375,-1000.0,9.898e-05,2]
[348455839,1736535044388,-500.0,9.996e-05,2]
[348455840,1736535044398,-500.0,9.997e-05,2]
[348455841,1736535044408,-636.89,9.997e-05,2]
[348455842,1736535044419,-500.0,9.998e-05,2]
[348455843,1736535044429,-500.0,9.998e-05,2]
[348455844,1736535044440,-808.44,0.00010249,2]
[348455845,1736535044450,-500.0,0.0001027,2]
[348455846,1736535044461,-144.17,0.00010272,2]
[348455847,1736535044474,-355.83,0.00010272,2]
[348455848,1736535044483,-500.0,0.00010272,2]
[348455849,1736535044494,-808.44,0.00010523,2]
[348455850,1736535044505,-500.0,0.00010544,2]
[348455851,1736535044516,-500.0,0.00010546,2]
[348455852,1736535044526,-500.0,0.00010546,2]
[348455853,1736535044536,-808.44,0.00010797,2]
[348455854,1736535044546,-500.0,0.00010818,2]
[348455855,1736535044556,-135.49201782,0.00010819,2]
[348455856,1736535044568,-546.37,0.00010819,2]
[348455857,1736535044578,-2002.94,0.00010819,2]
[348455858,1736535044589,-500.0,0.00010819,2]
[348455859,1736535044599,-630.94,0.00010819,2]
[348455860,1736535044609,-1113.76,0.00010819,2]
[348455861,1736535044619,-2877.49,0.00010819,2]
[348455862,1736535044629,-500.0,0.00010819,2]
[348455863,1736535044640,-500.0,0.00010819,2]
[348455864,1736535044651,-576.49,0.00010819,2]
[348455865,1736535044661,-851.28,0.00010819,2]
[348455866,1736535044670,-941.11,0.00010819,2]
[348455867,1736535044681,-373.78,0.00010819,2]
[348455868,1736535044691,-236.04,0.00010819,2]
[348455869,1736535044702,-1730.53,0.00010819,2]
[348455870,1736535044712,-507.75,0.00010819,2]
[348455871,1736535044721,-1062.01,0.00010819,2]
[348455872,1736535044732,-1447.38,0.00010819,2]
[348455873,1736535044742,-500.0,0.00010819,2]
[348455874,1736535044752,-738.02,0.00010819,2]
[348455875,1736535044763,-500.0,0.00010819,2]
[348455876,1736535044774,-507.06,0.00010819,2]
[348455877,1736535044784,-917.46,0.00010819,2]
[348455878,1736535044794,-1492.46,0.00010819,2]
[348455879,1736535044812,-500.0,0.00010819,2]
[348455880,1736535044823,-824.11,0.00010819,2]
[348455881,1736535044835,-500.0,0.00010819,2]
[348455882,1736535044846,-500.0,0.0001082,2]
[348455883,1736535044858,-500.0,0.0001082,2]
[348455884,1736535044868,-500.0,0.0001082,2]
[348455885,1736535044878,-500.0,0.0001082,2]
[348455886,1736535044892,-531.81323498,0.0001082,2]
[348455887,1736535044902,-500.0,0.0001082,2]
[348455888,1736535044913,-500.0,0.0001082,2]
[348455889,1736535044923,-500.0,0.0001082,2]
[348455890,1736535044934,-500.0,0.0001082,2]
[348455891,1736535044946,-500.0,0.0001082,2]
[348455892,1736535044958,-500.0,0.0001082,2]
[348455893,1736535044969,-439.01064441,0.0001082,2]
[348455894,1736535044980,-500.0,0.0001082,2]
[348455895,1736535044990,-500.0,0.0001082,2]
[348455896,1736535045001,-500.0,0.0001082,2]
[348455897,1736535045011,-500.0,0.0001082,2]
[348455898,1736535045022,-500.0,0.0001082,2]
[348455899,1736535045036,-500.0,0.0001082,2]
[348455900,1736535045047,-500.0,0.0001082,2]
[348455901,1736535045058,-733.66,0.0001082,2]
[348455902,1736535045070,-500.0,0.0001082,2]
[348455903,1736535045080,-445.42793311,0.0001082,2]
[348455904,1736535045090,-500.0,0.0001082,2]
[348455905,1736535045100,-500.0,0.0001082,2]
[348455906,1736535045111,-1054.44,0.0001082,2]
[348455907,1736535045122,-500.0,0.0001082,2]
[348455908,1736535045132,-665.87,0.0001082,2]
[348455909,1736535045142,-500.0,0.0001082,2]
[348455910,1736535045152,-500.0,0.0001082,2]
[348455911,1736535045162,-500.0,0.0001082,2]
[348455912,1736535045173,-437.572086,0.0001082,2]
[348455913,1736535045183,-500.0,0.0001082,2]
[348455914,1736535045193,-500.0,0.0001082,2]
[348455915,1736535045204,-500.0,0.0001082,2]
[348455916,1736535045213,-500.0,0.0001082,2]
[348455917,1736535045224,-500.0,0.0001082,2]
[348455918,1736535045234,-500.0,0.0001082,2]
[348455919,1736535045244,-562.327819,0.0001082,2]
[348455920,1736535045254,-500.0,0.0001082,2]
[348455921,1736535045263,-249.07246347,0.0001082,2]
[348455922,1736535045273,-1286.15,0.0001082,2]
[348455923,1736535045283,-500.0,0.0001082,2]
[348455924,1736535045293,-500.0,0.0001082,2]
[348455925,1736535045303,-500.0,0.0001082,2]
[348455926,1736535045312,-500.0,0.0001082,2]
[348455927,1736535045327,-500.0,0.0001082,2]
[348455928,1736535045337,-500.0,0.0001082,2]
[348455929,1736535045347,-500.0,0.0001082,2]
[348455930,1736535045357,-165.744198,0.0001082,2]
[348455931,1736535045367,-500.0,0.0001082,2]
[348455932,1736535045376,-317.98615369,0.0001082,2]
[348455933,1736535045387,-500.0,0.0001082,2]
[348455934,1736535045397,-614.2116786,0.0001082,2]
[348455935,1736535045531,-981.75,0.0001082,2]
[348455936,1736535045542,-1419.09,0.0001082,2]
[348455937,1736535045552,-500.0,0.0001082,2]
[348455938,1736535045562,-500.0,0.0001082,2]
[348455939,1736535045572,-500.0,0.0001082,2]
[348455940,1736535045582,-1630.18,0.0001082,2]
[348455941,1736535045592,-500.0,0.0001082,2]
[348455942,1736535045601,-500.0,0.0001082,2]
[348455943,1736535045611,-500.0,0.0001082,2]
[348455944,1736535045620,-500.0,0.0001082,2]
[348455945,1736535045629,-500.0,0.0001082,2]
[348455946,1736535045640,-1601.41,0.0001082,2]
[348455947,1736535045649,-588.34,0.0001082,2]
[348455948,1736535045658,-246.14986685,0.0001082,2]
[348455949,1736535045668,-613.069207,0.0001082,2]
[348455950,1736535045678,-500.0,0.0001082,2]
[348455951,1736535045687,-500.0,0.0001082,2]
[348455952,1736535045697,-500.0,0.0001082,2]
[348455953,1736535045707,-500.0,0.0001082,2]
[348455954,1736535045716,-500.0,0.0001082,2]
[348455955,1736535045726,-500.0,0.0001082,2]
[348455956,1736535045735,-500.0,0.0001082,2]
[348455957,1736535045745,-503.66,0.0001082,2]
[348455958,1736535045754,-500.0,0.0001082,2]
[348455959,1736535045764,-500.0,0.0001082,2]
[348455960,1736535045774,-500.0,0.0001082,2]
[348455961,1736535045783,-178.95789889,0.00010853,2]
[348455962,1736535045793,-2015.0,0.00010903,2]
[348455963,1736535045804,-566.0,0.00010903,2]
[348455964,1736535045813,-634.0,0.00010903,2]
[348455965,1736535045823,-1369.059,0.00010903,2]
[348455966,1736535045833,-1173.0,0.00010903,2]
[348455967,1736535045843,-3896.0,0.00010903,2]
[348455968,1736535045853,-150.0,0.00010903,2]
[348455969,1736535045864,-730.826,0.00010903,2]
[348455970,1736535045874,-500.0,0.00010919,2]
[348455971,1736535045885,-617.65,0.00010919,2]
[348455972,1736535045895,-865.29,0.00010919,2]
[348455973,1736535045905,-645.15,0.00010919,2]
[348455976,1736535045914,-1080.59,0.0001092,2]
[348455978,1736535045924,-861.95,0.0001092,2]
[348455979,1736535045934,-625.77,0.0001092,2]
[348455980,1736535045944,-500.0,0.0001092,2]
[348455981,1736535045953,-989.85,0.0001092,2]
[348455982,1736535045963,-635.83,0.0001092,2]
[348455984,1736535045973,-500.0,0.0001092,2]
[348455985,1736535045983,-563.27545707,0.00010921,2]
[348455986,1736535045994,-500.0,0.00010921,2]
[348455987,1736535046004,-500.0,0.00010922,2]
[348455989,1736535046016,-500.0,0.00010922,2]
[348455990,1736535046030,-500.0,0.00010922,2]
[348455991,1736535046040,-500.0,0.00010922,2]
[348455992,1736535046052,-747.32,0.00010922,2]
[348455993,1736535046062,-1723.13,0.00010922,2]
[348455994,1736535046074,-500.0,0.00010922,2]
[348455995,1736535046084,-500.0,0.00010922,2]
[348455996,1736535046093,-961.88,0.00010922,2]
[348455997,1736535046105,-500.0,0.00010922,2]
[348455998,1736535046115,-663.16,0.00010922,2]
[348455999,1736535046125,-500.0,0.00010922,2]
[348456000,1736535046136,-695.05,0.00010922,2]
[348456001,1736535046146,-500.0,0.00010922,2]
[348456002,1736535046155,-1000.0,0.00010922,2]
[348456003,1736535046165,-566.48,0.00010922,2]
[348456004,1736535046175,-1357.05,0.00010922,2]
[348456005,1736535046186,-205.88189651,0.00010952,2]
[348456006,1736535046196,-150.0,0.00010959,2]
[348456007,1736535046206,-544.03737656,0.00010969,2]
[348456008,1736535046216,-544.03737656,0.0001097,2]
[348456009,1736535046227,-1206.95581558,0.00010971,2]
[348456010,1736535046237,-544.03737656,0.00010975,2]
[348456011,1736535046247,-178.95789889,0.00010976,2]
[348456012,1736535046258,-544.03737656,0.00010981,2]
[348456013,1736535046268,-200.0,0.00010981,2]
[348456014,1736535046279,-544.03737656,0.00010982,2]
[348456015,1736535046289,-544.03737656,0.00010982,2]
[348456016,1736535046299,-500.0,0.00010986,2]
[348456017,1736535046309,-200.0,0.00010993,2]
[348456018,1736535046319,-200.0,0.00010993,2]
[348456019,1736535046330,-500.0,0.00011069,2]
[348456020,1736535046340,-500.0,0.00011069,2]
[348456021,1736535046351,-500.0,0.00011069,2]
[348456022,1736535046362,-1876.44,0.00011069,2]
[348456023,1736535046371,-500.0,0.0001107,2]
[348456024,1736535046381,-500.0,0.0001107,2]
[348456025,1736535046392,-500.0,0.0001107,2]
[348456026,1736535046401,-500.0,0.0001107,2]
[348456027,1736535046411,-500.0,0.0001107,2]
[348456028,1736535046420,-500.0,0.0001107,2]
[348456029,1736535046430,-500.0,0.0001107,2]
[348456030,1736535046439,-602.55892788,0.0001107,2]
[348456031,1736535046449,-500.0,0.0001107,2]
[348456032,1736535046458,-500.0,0.0001107,2]
[348456033,1736535046468,-500.0,0.0001107,2]
[348456034,1736535046477,-500.0,0.0001107,2]
[348456035,1736535046487,-500.0,0.0001107,2]
[348456036,1736535046496,-500.0,0.0001107,2]
[348456037,1736535046506,-500.0,0.0001107,2]
[348456038,1736535046516,-500.0,0.0001107,2]
[348456039,1736535046525,-500.0,0.0001107,2]
[348456040,1736535046536,-655.04,0.00011071,2]
[348456041,1736535046545,-1717.99,0.00011071,2]
[348456042,1736535046555,-771.37,0.00011071,2]
[348456043,1736535046565,-500.0,0.00011071,2]
[348456044,1736535046574,-702.24,0.00011071,2]
[348456045,1736535046584,-669.76,0.00011071,2]
[348456047,1736535046593,-999.71,0.00011071,2]
[348456049,1736535046603,-754.21,0.00011071,2]
[348456050,1736535046613,-1948.07,0.00011071,2]
[348456051,1736535046621,-808.44,0.00011071,2]
[348456052,1736535046631,-205.88189651,0.00011091,2]
[348456053,1736535046643,-500.0,0.00011092,2]
[348456054,1736535046654,-500.0,0.00011092,2]
[348456055,1736535046664,-500.0,0.00011093,2]
[348456056,1736535046674,-793.79,0.00011093,2]
[348456057,1736535046684,-546.37,0.00011093,2]
[348456058,1736535046693,-2002.94,0.00011093,2]
[348456059,1736535046703,-630.94,0.00011093,2]
[348456060,1736535046713,-1113.76,0.00011093,2]
[348456061,1736535046722,-2877.49,0.00011093,2]
[348456062,1736535046731,-500.0,0.00011093,2]
[348456063,1736535046741,-500.0,0.00011093,2]
[348456064,1736535046750,-576.49,0.00011093,2]
[348456065,1736535046759,-851.28,0.00011093,2]
[348456066,1736535046769,-941.11,0.00011093,2]
[348456067,1736535046778,-1730.53,0.00011093,2]
[348456068,1736535046788,-507.75,0.00011093,2]
[348456069,1736535046797,-1062.01,0.00011093,2]
[348456070,1736535046807,-1447.38,0.00011093,2]
[348456071,1736535046815,-500.0,0.00011093,2]
[348456073,1736535046825,-738.02,0.00011093,2]
[348456074,1736535046834,-500.0,0.00011093,2]
[348456076,1736535046843,-507.06,0.00011093,2]
[348456078,1736535046853,-917.46,0.00011093,2]
[348456080,1736535046863,-1492.46,0.00011093,2]
[348456082,1736535046873,-500.0,0.00011093,2]
[348456084,1736535046882,-824.11,0.00011093,2]
[348456086,1736535046893,-500.0,0.00011093,2]
[348456088,1736535046903,-500.0,0.00011094,2]
[348456090,1736535046912,-254.7962157,0.00011094,2]
[348456092,1736535046922,-500.0,0.00011094,2]
[348456094,1736535046932,-500.0,0.00011094,2]
[348456096,1736535046942,-500.0,0.00011094,2]
[348456098,1736535046952,-500.0,0.00011094,2]
[348456100,1736535046961,-500.0,0.00011094,2]
[348456102,1736535046971,-500.0,0.00011094,2]
[348456104,1736535046982,-500.0,0.00011094,2]
[348456106,1736535046991,-500.0,0.00011094,2]
[348456108,1736535047001,-500.0,0.00011094,2]
[348456110,1736535047010,-500.0,0.00011094,2]
[348456112,1736535047020,-500.0,0.00011094,2]
[348456114,1736535047034,-500.0,0.00011094,2]
[348456115,1736535047042,-500.0,0.00011094,2]
[348456116,1736535047052,-500.0,0.00011094,2]
[348456117,1736535047063,-733.66,0.00011094,2]
[348456118,1736535047073,-500.0,0.00011094,2]
[348456120,1736535047082,-500.0,0.00011094,2]
[348456122,1736535047092,-500.0,0.00011094,2]
[348456123,1736535047101,-1054.44,0.00011094,2]
[348456125,1736535047111,-500.0,0.00011094,2]
[348456127,1736535047121,-665.87,0.00011094,2]
[348456129,1736535047131,-500.0,0.00011094,2]
[348456131,1736535047142,-500.0,0.00011094,2]
[348456133,1736535047151,-500.0,0.00011094,2]
[348456135,1736535047161,-437.572086,0.00011094,2]
[348456137,1736535047170,-500.0,0.00011094,2]
[348456139,1736535047180,-500.0,0.00011094,2]
[348456141,1736535047190,-500.0,0.00011094,2]
[348456143,1736535047200,-500.0,0.00011094,2]
[348456144,1736535047209,-500.0,0.00011094,2]
[348456145,1736535047220,-500.0,0.00011094,2]
[348456146,1736535047230,-562.327819,0.00011094,2]
[348456147,1736535047240,-500.0,0.00011094,2]
[348456148,1736535047250,-1286.15,0.00011094,2]
[348456149,1736535047259,-500.0,0.00011094,2]
[348456150,1736535047269,-500.0,0.00011094,2]
[348456151,1736535047279,-500.0,0.00011094,2]
[348456152,1736535047289,-500.0,0.00011094,2]
[348456153,1736535047299,-500.0,0.00011094,2]
[348456154,1736535047309,-500.0,0.00011094,2]
[348456155,1736535047319,-500.0,0.00011094,2]
[348456156,1736535047329,-296.62714604,0.00011094,2]
[348456157,1736535047339,-500.0,0.00011094,2]
[348456158,1736535047350,-981.75,0.00011094,2]
[348456159,1736535047360,-1419.09,0.00011094,2]
[348456160,1736535047371,-500.0,0.00011094,2]
[348456161,1736535047380,-500.0,0.00011094,2]
[348456162,1736535047392,-500.0,0.00011094,2]
[348456163,1736535047402,-1630.18,0.00011094,2]
[348456164,1736535047412,-500.0,0.00011094,2]